bitfinex-derivatives/quotes_BTCF0:USTF0_20241010
["timestamp","ask_amount","ask_price","bid_price","bid_amount"]
[1728591065682,0.2765,59937.0,59930.0,0.001]
[1728591065987,0.3608,59936.0,59930.0,0.001]
[1728591066284,0.001,59936.0,59928.0,0.08652362]
[1728591066480,0.3618,59936.0,59928.0,0.08652362]
[1728591066879,0.3618,59936.0,59929.0,0.08351]
[1728591067075,0.3618,59936.0,59932.0,0.001]
[1728591067376,0.273505,59933.0,59932.0,0.001]
[1728591067584,0.273505,59933.0,59928.0,0.00201162]
[1728591067779,0.27149944,59929.0,59928.0,0.001]
[1728591068283,0.083514,59927.0,59925.0,0.00250295]
[1728591068483,0.083514,59927.0,59926.0,0.3608]
[1728591069243,0.083514,59927.0,59914.0,0.399]
[1728591069315,0.3608,59924.0,59915.0,0.15397216]
[1728591069586,0.19,59916.0,59908.0,0.0376]
[1728591069883,0.08353,59915.0,59908.0,0.12114]
[1728591070086,0.19,59909.0,59908.0,0.12114]
[1728591071385,0.19,59909.0,59908.0,0.12514]
[1728591072377,0.19,59909.0,59908.0,0.08754]
[1728591072580,0.274539,59909.0,59908.0,0.01]
[1728591073377,0.1147483,59909.0,59908.0,0.01]
[1728591073696,0.1147483,59909.0,59908.0,0.002]
[1728591073883,1.4937693,59909.0,59896.0,0.3608]
[1728591074084,0.273555,59897.0,59896.0,0.3608]
[1728591074678,0.273555,59897.0,59889.0,0.3608]
[1728591074679,0.083557,59896.0,59889.0,0.3608]
[1728591074880,0.273565,59890.0,59889.0,0.3608]
[1728591075693,0.083565,59890.0,59889.0,0.3608]
[1728591076387,0.083565,59890.0,59889.0,0.3638]
[1728591076790,0.11323566,59890.0,59889.0,0.3638]
[1728591077784,0.11323566,59890.0,59889.0,0.3648]
[1728591078095,0.02967066,59890.0,59889.0,0.3648]
[1728591078289,0.083564,59891.0,59889.0,0.3648]
[1728591078992,0.083565,59890.0,59889.0,0.3648]
[1728591079294,0.083565,59890.0,59889.0,0.004]
[1728591079571,1.184485,59890.0,59889.0,0.002]
[1728591079721,1.184485,59890.0,59876.0,0.3608]
[1728591079722,0.083575,59883.0,59876.0,0.06558064]
[1728591079903,0.824383,59877.0,59874.0,0.00250525]
[1728591080102,0.083586,59875.0,59874.0,0.00250525]
[1728591080695,1.184626,59875.0,59866.0,0.3608]
[1728591080903,0.273597,59867.0,59866.0,0.3608]
[1728591082195,0.19,59870.0,59866.0,0.3608]
[1728591082503,0.00644,59877.0,59871.0,0.08359]
[1728591082825,0.083583,59877.0,59874.0,0.001]
[1728591083088,0.083583,59877.0,59876.0,0.3608]
[1728591083195,0.083583,59877.0,59875.0,0.3608]
[1728591083898,0.089583,59877.0,59875.0,0.3608]
[1728591084098,0.083585,59876.0,59875.0,0.3608]
[1728591084402,0.083585,59876.0,59875.0,0.3618]
[1728591084802,0.04176477,59876.0,59875.0,0.3618]
[1728591086101,0.05576477,59876.0,59875.0,0.3628]
[1728591086690,0.06076477,59876.0,59875.0,0.002]
[1728591086891,0.06076477,59876.0,59875.0,0.3628]
[1728591087091,0.25076477,59876.0,59875.0,0.3628]
[1728591087300,0.25076477,59876.0,59875.0,0.002]
[1728591088000,0.23676477,59876.0,59875.0,0.001]
[1728591088203,0.25076477,59876.0,59875.0,0.002]
[1728591088800,0.23676477,59876.0,59875.0,0.001]
[1728591088998,0.25076477,59876.0,59875.0,0.002]
[1728591089205,1.34680477,59876.0,59875.0,0.001]
[1728591089399,1.35180477,59876.0,59875.0,0.002]
[1728591090159,0.083595,59869.0,59868.0,0.3608]
[1728591090309,0.273595,59869.0,59862.0,0.36330579]
[1728591090503,0.19,59863.0,59862.0,0.36330579]
[1728591090710,0.273603,59863.0,59862.0,0.36330579]
[1728591092112,0.273603,59863.0,59862.0,0.00250579]
[1728591092301,0.276603,59863.0,59862.0,0.00250579]
[1728591092503,0.276603,59863.0,59862.0,0.00350579]
[1728591093005,0.280603,59863.0,59862.0,0.00250579]
[1728591094602,0.280603,59863.0,59862.0,0.00242579]
[1728591095199,0.31053563,59863.0,59862.0,0.00242579]
[1728591097314,0.31053563,59863.0,59856.0,0.3608]
[1728591097315,0.083604,59862.0,59856.0,0.3608]
[1728591098203,0.083609,59859.0,59856.0,0.3608]
[1728591099202,0.086604,59862.0,59856.0,0.3608]
[1728591099509,0.086604,59862.0,59856.0,0.3618]
[1728591099510,0.083604,59862.0,59856.0,0.3618]
[1728591099713,0.083609,59859.0,59856.0,0.3618]
[1728591099905,0.02993263,59863.0,59858.0,0.28788017]
[1728591100111,0.083601,59865.0,59862.0,0.09788017]
[1728591100306,0.083601,59865.0,59863.0,0.22353395]
[1728591100509,0.0836,59866.0,59864.0,0.12565378]
[1728591100709,0.0836,59866.0,59865.0,0.12565378]
[1728591101210,0.19,59869.0,59865.0,0.12565378]
[1728591101410,0.083596,59868.0,59866.0,0.12565378]
[1728591101612,0.083596,59868.0,59867.0,0.12565378]
[1728591101802,0.444396,59868.0,59867.0,0.12565378]
[1728591102712,0.458396,59868.0,59867.0,0.12765378]
[1728591106113,0.458396,59868.0,59867.0,0.27663737]
[1728591106615,0.014,59868.0,59867.0,0.27654414]
[1728591107112,0.014,59868.0,59867.0,0.52480617]
[1728591107911,0.014,59868.0,59867.0,0.0776]
[1728591109121,0.014,59868.0,59867.0,0.28482756]
[1728591109913,0.014,59868.0,59867.0,0.0776]
[1728591113823,0.097596,59868.0,59867.0,0.0776]
[1728591114044,0.097596,59868.0,59861.0,0.09867945]
[1728591114045,0.0836,59865.0,59861.0,0.09867945]
[1728591114215,0.273604,59862.0,59861.0,0.09867945]
[1728591114419,0.083607,59860.0,59859.0,0.3608]
[1728591115029,0.19,59862.0,59859.0,0.63551987]
[1728591115232,0.083606,59861.0,59860.0,0.27471987]
[1728591116630,0.083606,59861.0,59860.0,0.1253306]
[1728591116937,0.083607,59860.0,59859.0,0.09895653]
[1728591117227,0.083607,59860.0,59848.0,0.3608]
[1728591117228,0.083611,59857.0,59856.0,0.09895653]
[1728591117430,0.634411,59857.0,59856.0,0.09895653]
[1728591117728,0.083613,59856.0,59848.0,0.3608]
[1728591117928,0.083613,59856.0,59855.0,0.0989565]
[1728591118333,0.08362,59851.0,59848.0,0.3608]
[1728591118537,0.19,59849.0,59848.0,0.3608]
[1728591119439,0.19,59853.0,59848.0,0.3608]
[1728591120349,0.19,59853.0,59848.0,0.444424]
[1728591120539,0.19,59853.0,59848.0,0.445424]
[1728591120540,0.23420701,59853.0,59848.0,0.445424]
[1728591120931,0.24320701,59853.0,59848.0,0.446424]
[1728591122743,0.023,59853.0,59852.0,0.083618]
[1728591123828,0.023,59853.0,59852.0,0.084618]
[1728591124032,0.014,59853.0,59852.0,0.085618]
[1728591124247,0.022,59853.0,59852.0,0.085618]
[1728591125135,0.0039,59866.0,59852.0,1.65404]
[1728591125340,0.083597,59868.0,59865.0,0.4444]
[1728591125537,0.083597,59867.0,59865.0,0.3608]
[1728591125742,0.19,59868.0,59859.0,0.3608]
[1728591125743,0.083607,59860.0,59859.0,0.3608]
[1728591125938,0.273607,59860.0,59859.0,0.3608]
[1728591127040,0.285607,59860.0,59859.0,0.3618]
[1728591128442,0.095607,59860.0,59859.0,0.3628]
[1728591129749,0.12595055,59860.0,59859.0,0.3628]
[1728591129944,0.12595055,59860.0,59859.0,0.446408]
[1728591130146,0.04234355,59860.0,59859.0,0.446408]
[1728591130539,0.012,59860.0,59859.0,0.446408]
[1728591131053,0.00250673,59869.0,59868.0,0.083596]
[1728591131540,0.07504455,59871.0,59868.0,0.083596]
[1728591131740,0.07504455,59871.0,59870.0,0.08246988]
[1728591131940,0.08359,59873.0,59870.0,0.08246988]
[1728591132249,0.083591,59872.0,59869.0,0.083594]
[1728591133082,0.083591,59872.0,59869.0,0.16606388]
[1728591133141,0.083591,59872.0,59869.0,0.083594]
[1728591133651,0.39131286,59874.0,59868.0,0.08246988]
[1728591133652,0.39131286,59874.0,59871.0,0.083591]
[1728591134040,0.58131286,59874.0,59871.0,0.083591]
[1728591134546,0.58131286,59874.0,59870.0,0.001]
[1728591134746,0.03051286,59874.0,59873.0,0.083589]
[1728591134949,0.0365,59880.0,59875.0,0.083585]
[1728591135156,0.120079,59880.0,59877.0,0.3608]
[1728591135651,0.02944491,59880.0,59877.0,0.444383]
[1728591135854,0.19,59882.0,59877.0,0.3608]
[1728591136050,0.273577,59882.0,59877.0,0.3608]
[1728591136349,0.273577,59882.0,59877.0,0.3618]
[1728591137155,0.21988155,59882.0,59877.0,0.3628]
[1728591137358,0.083578,59881.0,59877.0,0.3628]
[1728591139942,0.02988155,59882.0,59880.0,0.083579]
[1728591140145,0.19,59886.0,59880.0,0.083579]
[1728591140359,0.273572,59886.0,59880.0,0.083579]
[1728591140744,0.19,59886.0,59880.0,0.083579]
[1728591140952,0.19,59881.0,59880.0,0.001]
[1728591141154,0.19,59881.0,59880.0,0.002]
[1728591141358,0.273578,59881.0,59880.0,0.002]
[1728591141662,0.273578,59881.0,59872.0,0.3608]
[1728591141663,0.273589,59873.0,59872.0,0.3608]
[1728591141847,0.19,59873.0,59872.0,0.3608]
[1728591142657,0.19,59873.0,59868.0,0.444395]
[1728591142955,0.19,59869.0,59868.0,0.444395]
[1728591144148,0.19,59869.0,59868.0,0.445395]
[1728591144454,0.191,59869.0,59868.0,0.446395]
[1728591145058,0.192,59869.0,59868.0,0.446395]
[1728591147156,0.192,59869.0,59868.0,0.51227342]
[1728591148156,0.192,59869.0,59868.0,0.15147342]
[1728591148362,0.192,59869.0,59868.0,0.51227342]
[1728591148552,0.192,59869.0,59868.0,0.446395]
[1728591148752,0.22198211,59869.0,59868.0,0.446395]
[1728591150318,0.03198211,59869.0,59868.0,0.446395]
[1728591150659,0.11557711,59869.0,59868.0,0.446395]
[1728591151755,0.03198211,59869.0,59868.0,0.446395]
[1728591153053,0.19,59872.0,59868.0,0.56854233]
[1728591153251,0.083592,59871.0,59870.0,0.08247176]
[1728591153450,0.083592,59871.0,59870.0,0.20461909]
[1728591154349,0.083592,59871.0,59870.0,0.12214733]
[1728591154764,0.084592,59871.0,59870.0,0.12314733]
[1728591156260,0.084592,59871.0,59870.0,0.12414733]
[1728591157698,0.001,59871.0,59870.0,0.20774033]
[1728591157964,0.001,59871.0,59870.0,0.12414733]
[1728591158264,0.084592,59871.0,59870.0,0.12414733]
[1728591159062,0.001,59871.0,59870.0,0.12414733]
[1728591160061,0.001,59871.0,59870.0,0.002]
[1728591160577,0.001,59871.0,59870.0,0.446393]
[1728591164164,0.444378,59881.0,59870.0,0.446393]
[1728591164165,0.11659438,59886.0,59881.0,0.083578]
[1728591164363,0.083571,59886.0,59883.0,0.083574]
[1728591164566,0.00250579,59888.0,59885.0,0.5508]
[1728591165375,0.03314179,59888.0,59885.0,0.5508]
[1728591165571,0.03314179,59888.0,59887.0,0.083569]
[1728591166269,0.03314179,59888.0,59885.0,0.55168]
[1728591166487,0.03314179,59888.0,59886.0,0.08357]
[1728591167476,0.03314179,59888.0,59887.0,0.083569]
[1728591168570,0.03314179,59888.0,59887.0,0.084569]
[1728591170072,0.00250579,59888.0,59887.0,0.445369]
[1728591170274,0.00250579,59888.0,59887.0,0.556069]
[1728591170576,0.00250579,59888.0,59887.0,0.557069]
[1728591172271,0.00250579,59888.0,59887.0,0.556069]
[1728591173476,0.119745,59905.0,59887.0,1.7230212]
[1728591173477,0.083555,59898.0,59887.0,1.7230212]
[1728591173682,0.083555,59898.0,59897.0,0.444353]
[1728591175174,0.083555,59898.0,59897.0,0.445353]
[1728591175484,0.083555,59898.0,59897.0,0.446353]
[1728591176075,0.273551,59901.0,59900.0,0.083551]
[1728591176277,0.30355189,59901.0,59900.0,0.13280733]
[1728591177171,0.30355189,59901.0,59900.0,0.13480733]
[1728591177385,0.30355189,59901.0,59900.0,0.085551]
[1728591178781,0.30355189,59901.0,59900.0,0.13477861]
[1728591178782,0.03000089,59901.0,59900.0,0.13477861]
[1728591179085,0.08355,59901.0,59900.0,0.002]
[1728591179489,0.19005,59901.0,59900.0,0.002]
[1728591184700,0.22087475,59901.0,59900.0,0.002]
[1728591188296,0.0344,59909.0,59900.0,0.5528]
[1728591188717,0.0344,59909.0,59907.0,0.083541]
[1728591189093,0.0344,59909.0,59908.0,0.08354]
[1728591189498,0.0344,59909.0,59906.0,0.083542]
[1728591189704,0.0344,59909.0,59908.0,0.08354]
[1728591190318,0.0344,59909.0,59908.0,0.08454]
[1728591191295,0.0344,59909.0,59908.0,0.002]
[1728591191501,0.0344,59909.0,59908.0,0.0680322]
[1728591191900,0.0344,59909.0,59908.0,0.1515722]
[1728591192306,0.0344,59909.0,59908.0,0.08554]
[1728591193836,0.0344,59909.0,59908.0,0.002]
[1728591194300,0.117939,59909.0,59908.0,0.002]
[1728591199609,0.04091313,59909.0,59908.0,0.002]
[1728591199815,0.20687477,59910.0,59908.0,0.08554]
[1728591200109,0.04091313,59909.0,59908.0,0.08554]
[1728591200919,0.04091313,59909.0,59908.0,0.002]
[1728591202001,0.04091097,59909.0,59908.0,0.002]
[1728591202410,0.04091097,59909.0,59908.0,0.001]
[1728591202619,0.04091097,59909.0,59908.0,0.08554]
[1728591202910,0.03247839,59910.0,59909.0,0.083539]
[1728591204054,0.03247839,59910.0,59909.0,0.084539]
[1728591204207,0.03247839,59910.0,59909.0,0.085539]
[1728591204603,0.03247839,59910.0,59909.0,0.084539]
[1728591204807,0.03247839,59910.0,59909.0,0.085539]
[1728591205310,0.03247839,59910.0,59909.0,0.002]
[1728591210515,0.03247839,59910.0,59909.0,0.085539]
[1728591210723,0.03247839,59910.0,59909.0,0.39939806]
[1728591210924,0.00250452,59910.0,59909.0,0.43409806]
[1728591211207,0.0039,59921.0,59919.0,0.083524]
[1728591211418,0.083511,59930.0,59909.0,0.35055906]
[1728591211419,0.19,59924.0,59920.0,0.083523]
[1728591211611,0.273518,59924.0,59923.0,0.3608]
[1728591211811,0.273518,59924.0,59923.0,0.4266414]
[1728591212414,0.273518,59924.0,59923.0,0.3608]
[1728591212820,0.273518,59924.0,59922.0,0.0658414]
[1728591212821,0.19,59924.0,59922.0,0.0658414]
[1728591213013,0.083522,59921.0,59920.0,0.0658414]
[1728591213214,0.19,59921.0,59916.0,0.3608]
[1728591213520,0.19,59917.0,59916.0,0.3608]
[1728591214409,0.19,59917.0,59916.0,0.3618]
[1728591215123,0.19,59917.0,59916.0,0.445329]
[1728591215417,0.19,59921.0,59916.0,0.446329]
[1728591216119,0.19,59921.0,59916.0,0.445329]
[1728591216319,0.19,59921.0,59916.0,0.3628]
[1728591216623,0.19,59921.0,59917.0,0.083527]
[1728591218122,0.21942813,59921.0,59917.0,0.083527]
[1728591218511,0.21942813,59921.0,59918.0,0.083525]
[1728591218724,0.02942813,59921.0,59918.0,0.083525]
[1728591218925,0.273519,59924.0,59918.0,0.083525]
[1728591219824,0.273519,59924.0,59918.0,0.084525]
[1728591220030,0.273519,59924.0,59918.0,0.085525]
[1728591220217,0.273519,59924.0,59920.0,0.0658414]
[1728591220613,0.083522,59921.0,59920.0,0.0658414]
[1728591220923,0.273522,59921.0,59920.0,0.0658414]
[1728591221620,0.19,59921.0,59920.0,0.0658414]
[1728591221827,0.02948831,59924.0,59920.0,0.1493644]
[1728591222130,0.19,59925.0,59920.0,0.1493644]
[1728591222329,0.19,59925.0,59924.0,0.04934861]
[1728591222522,0.083516,59926.0,59924.0,0.04934861]
[1728591222922,0.19152,59928.0,59925.0,0.13286461]
[1728591223122,0.19152,59928.0,59926.0,0.04934861]
[1728591223123,0.19,59928.0,59926.0,0.04934861]
[1728591223325,0.19,59928.0,59927.0,0.04934861]
[1728591223632,0.19,59928.0,59927.0,0.04934927]
[1728591223819,0.19,59928.0,59924.0,0.002]
[1728591224218,0.19,59928.0,59927.0,0.0493487]
[1728591224427,0.19,59928.0,59927.0,0.0503487]
[1728591224620,0.19,59928.0,59927.0,0.001]
[1728591225427,0.19,59928.0,59927.0,0.002]
[1728591225930,0.19,59928.0,59927.0,0.05035823]
[1728591226432,0.083508,59931.0,59927.0,0.05035823]
[1728591226433,0.19,59932.0,59927.0,0.084514]
[1728591226631,0.19250379,59936.0,59930.0,0.049356]
[1728591226829,0.00250379,59936.0,59934.0,0.049356]
[1728591227028,0.00250379,59936.0,59934.0,0.083503]
[1728591228827,0.00250379,59936.0,59935.0,0.083502]
[1728591229044,0.03330213,59936.0,59935.0,0.083502]
[1728591229331,0.00250379,59936.0,59935.0,0.083502]
[1728591230225,0.00250379,59936.0,59935.0,0.084502]
[1728591230929,0.00250379,59936.0,59935.0,0.001]
[1728591231930,0.02937192,59936.0,59935.0,1.10252]
[1728591232131,0.083491,59944.0,59938.0,0.083498]
[1728591232331,0.083491,59944.0,59941.0,0.3608]
[1728591233233,0.083491,59943.0,59941.0,0.3608]
[1728591233433,0.083493,59942.0,59941.0,0.3608]
[1728591233737,0.083493,59942.0,59941.0,0.001]
[1728591234124,0.19,59944.0,59941.0,0.001]
[1728591234332,0.14994825,59945.0,59941.0,0.001]
[1728591235046,0.08349,59944.0,59941.0,0.001]
[1728591235434,0.08349,59944.0,59941.0,0.002]
[1728591235928,0.08349,59944.0,59941.0,0.001]
[1728591236132,0.08349,59944.0,59941.0,0.002]
[1728591238031,0.00144,59952.0,59943.0,0.5508]
[1728591238234,0.444275,59955.0,59950.0,0.3608]
[1728591239033,0.47483343,59955.0,59950.0,0.3608]
[1728591239229,0.47483343,59955.0,59950.0,0.3618]
[1728591239931,0.47483343,59955.0,59950.0,0.41211774]
[1728591240129,0.083476,59954.0,59950.0,0.41211774]
[1728591241735,0.083479,59952.0,59950.0,0.41211774]
[1728591242035,0.08348,59951.0,59950.0,0.41211774]
[1728591242237,0.47483443,59955.0,59950.0,0.3628]
[1728591242441,0.083478,59953.0,59950.0,0.3628]
[1728591242842,0.083478,59953.0,59950.0,0.3618]
[1728591243037,0.083478,59953.0,59950.0,0.3628]
[1728591243231,0.39135843,59955.0,59950.0,0.3628]
[1728591243434,0.39135843,59955.0,59951.0,0.04931774]
[1728591243631,0.08348,59952.0,59950.0,0.3628]
[1728591243833,0.08348,59951.0,59950.0,0.3628]
[1728591244143,0.08348,59951.0,59950.0,0.002]
[1728591244144,0.27348,59951.0,59950.0,0.002]
[1728591244440,0.27348,59951.0,59950.0,0.001]
[1728591244441,0.23171104,59951.0,59950.0,0.001]
[1728591244639,0.23171104,59951.0,59950.0,0.002]
[1728591245349,0.19,59951.0,59950.0,0.002]
[1728591245649,0.27348,59951.0,59950.0,0.002]
[1728591246533,0.117276,59954.0,59950.0,0.002]
[1728591246779,0.0338,59954.0,59950.0,0.002]
[1728591246982,0.083478,59953.0,59950.0,0.002]
[1728591247833,0.08348,59952.0,59950.0,0.002]
[1728591248146,0.083478,59953.0,59950.0,0.002]
[1728591248345,0.03055843,59955.0,59950.0,0.191]
[1728591248548,0.083462,59964.0,59951.0,0.08348]
[1728591248549,0.0349,59963.0,59951.0,0.08348]
[1728591248737,0.083472,59957.0,59951.0,0.08348]
[1728591248941,0.083472,59957.0,59953.0,0.3608]
[1728591250650,0.083468,59960.0,59953.0,0.634276]
[1728591250838,0.083469,59959.0,59953.0,0.634276]
[1728591251238,0.09599347,59961.0,59953.0,0.5518]
[1728591251543,0.083469,59960.0,59953.0,0.636277]
[1728591251956,0.083469,59960.0,59953.0,0.635277]
[1728591252135,0.083469,59960.0,59953.0,0.636277]
[1728591252446,0.083469,59959.0,59953.0,0.636277]
[1728591253154,0.083465,59962.0,59953.0,0.636277]
[1728591253337,0.06565202,59963.0,59953.0,0.636277]
[1728591253338,0.06565202,59963.0,59957.0,0.19]
[1728591253541,0.06565202,59963.0,59960.0,0.3608]
[1728591254046,0.03075202,59963.0,59962.0,0.083465]
[1728591254248,0.083457,59968.0,59962.0,0.083465]
[1728591254444,0.03258084,59967.0,59962.0,0.083465]
[1728591254645,0.00250244,59967.0,59966.0,0.19]
[1728591255148,0.00250244,59967.0,59966.0,0.273459]
[1728591255750,0.00250244,59967.0,59966.0,0.19]
[1728591256644,0.00250244,59967.0,59966.0,0.273459]
[1728591256996,0.00250244,59967.0,59966.0,0.274459]
[1728591257542,0.00250244,59967.0,59966.0,0.275459]
[1728591258052,0.00250244,59967.0,59966.0,0.085459]
[1728591258354,0.0327,59977.0,59969.0,0.083454]
[1728591258355,0.083449,59974.0,59969.0,0.083454]
[1728591258549,0.083449,59974.0,59966.0,0.12626639]
[1728591258550,0.0327,59977.0,59972.0,0.3608]
[1728591258743,0.03051013,59977.0,59975.0,0.14901987]
[1728591258940,0.03051013,59977.0,59972.0,0.3608]
[1728591258941,0.083446,59976.0,59974.0,0.08196971]
[1728591259250,0.083442,59979.0,59975.0,0.08196971]
[1728591259455,0.083443,59978.0,59974.0,0.08196971]
[1728591260170,0.58107562,59981.0,59974.0,0.08196971]
[1728591260171,0.083444,59977.0,59974.0,0.08196971]
[1728591260659,0.083445,59976.0,59974.0,0.08196971]
[1728591261341,0.39107562,59981.0,59974.0,0.084447]
[1728591261542,0.083443,59978.0,59974.0,0.084447]
[1728591261753,0.03027562,59981.0,59980.0,0.08344]
[1728591261940,0.08343,59988.0,59980.0,0.19]
[1728591262149,0.0348,59998.0,59980.0,0.19]
[1728591262150,0.0039,59997.0,59987.0,0.19]
[1728591262451,0.083414,59999.0,59997.0,0.19]
[1728591262750,0.04010124,60000.0,59995.0,0.3608]
[1728591262751,0.01,60000.0,59995.0,0.3608]
[1728591262948,0.01,60000.0,59995.0,0.444218]
[1728591263150,0.01,60000.0,59997.0,0.04909213]
[1728591263358,0.083415,59998.0,59995.0,0.42625618]
[1728591263653,0.01,60000.0,59995.0,0.444219]
[1728591263955,0.093412,60000.0,59998.0,0.06537738]
[1728591264146,0.093412,60000.0,59999.0,0.06537738]
[1728591264345,0.093412,60000.0,59995.0,0.445219]
[1728591264346,0.093412,60000.0,59998.0,0.06537738]
[1728591265355,0.093412,60000.0,59999.0,0.002]
[1728591265648,0.093412,60000.0,59999.0,0.05095369]
[1728591265849,0.01,60000.0,59999.0,0.05095369]
[1728591266049,0.01,60000.0,59999.0,0.04995369]
[1728591266649,0.04032027,60000.0,59999.0,0.04895369]
[1728591266843,0.01,60000.0,59999.0,0.04895369]
[1728591267253,0.01,60000.0,59999.0,0.084413]
[1728591267450,0.01,60000.0,59999.0,0.13332654]
[1728591267754,0.3608,60007.0,60002.0,0.083409]
[1728591267755,0.3543,60007.0,60002.0,0.083409]
[1728591267950,0.3543,60007.0,59999.0,0.192]
[1728591268247,0.3543,60007.0,60003.0,0.083408]
[1728591268452,0.38493279,60007.0,60003.0,0.083408]
[1728591268750,0.38493279,60007.0,60002.0,0.001]
[1728591268954,0.38493279,60007.0,60002.0,0.084409]
[1728591269648,0.03063279,60007.0,60006.0,0.083404]
[1728591269844,0.1041,60011.0,60006.0,0.083404]
[1728591270046,0.03050657,60011.0,60009.0,0.083399]
[1728591270263,0.083388,60017.0,60010.0,0.083398]
[1728591270560,0.083388,60017.0,60011.0,0.083397]
[1728591270753,0.083391,60016.0,60011.0,0.083397]
[1728591271258,0.0704,60019.0,60012.0,0.083394]
[1728591271553,0.08339,60016.0,60010.0,0.084398]
[1728591271757,0.0704,60019.0,60010.0,0.084398]
[1728591271758,0.083388,60018.0,60013.0,0.083394]
[1728591271944,0.08339,60016.0,60011.0,0.3608]
[1728591272146,0.083393,60014.0,60011.0,0.3618]
[1728591272651,0.08339,60016.0,60011.0,0.3618]
[1728591272858,0.19,60018.0,60011.0,0.3618]
[1728591273055,0.273387,60018.0,60012.0,0.083395]
[1728591273351,0.19,60018.0,60012.0,0.083395]
[1728591273855,0.19,60018.0,60013.0,0.001]
[1728591274245,0.19,60018.0,60013.0,0.084394]
[1728591274447,0.10193771,60019.0,60015.0,0.083391]
[1728591274648,0.10193771,60019.0,60012.0,0.001]
[1728591274649,0.1003777,60019.0,60012.0,0.002]
[1728591274850,0.19,60018.0,60013.0,0.001]
[1728591276352,0.19,60018.0,60012.0,0.084395]
[1728591276550,0.19,60018.0,60015.0,0.001]
[1728591276860,0.083398,60011.0,60002.0,0.083408]
[1728591277135,0.116698,60010.0,60002.0,0.083408]
[1728591277249,0.0834,60009.0,60001.0,0.3608]
[1728591277449,0.19,60007.0,60001.0,0.3608]
[1728591277645,0.0354,60006.0,60001.0,0.3608]
[1728591277853,0.0707,60006.0,60001.0,0.3608]
[1728591278151,0.0707,60006.0,60002.0,0.001]
[1728591278152,0.19,60004.0,60002.0,0.001]
[1728591278351,0.0707,60006.0,60002.0,0.001]
[1728591278557,0.0707,60006.0,60003.0,0.083407]
[1728591278759,0.10041719,60006.0,60005.0,0.083405]
[1728591278953,0.10041719,60006.0,60002.0,0.084409]
[1728591279152,0.10041719,60006.0,60002.0,0.085409]
[1728591279352,0.10041719,60006.0,60002.0,0.002]
[1728591279551,0.083408,60003.0,60002.0,0.002]
[1728591279755,0.083408,60003.0,60002.0,0.001]
[1728591279954,0.083408,60003.0,60001.0,0.3608]
[1728591280160,0.083408,60003.0,60001.0,0.3618]
[1728591280357,0.083408,60003.0,60002.0,0.001]
[1728591280749,0.083408,60003.0,60001.0,0.3608]
[1728591280959,0.083408,60003.0,60002.0,0.002]
[1728591281155,0.083408,60003.0,60002.0,0.06716275]
[1728591281354,0.083408,60003.0,60002.0,0.002]
[1728591281759,0.19,60005.0,60002.0,0.06719784]
[1728591281951,0.10041719,60006.0,60004.0,0.06519784]
[1728591282155,0.083405,60005.0,60004.0,0.06519784]
[1728591282351,0.10041719,60006.0,60002.0,0.001]
[1728591282551,0.083406,60004.0,60003.0,0.06524582]
[1728591282756,0.083406,60004.0,60002.0,0.002]
[1728591282757,0.55224,60008.0,60002.0,0.06724582]
[1728591282956,0.55224,60008.0,60005.0,0.04893364]
[1728591282957,0.5508,60008.0,60005.0,0.04893364]
[1728591283375,0.634201,60008.0,60007.0,0.04893364]
[1728591283755,0.634201,60008.0,60006.0,0.04893364]
[1728591283756,0.083402,60007.0,60006.0,0.04893364]
[1728591283952,0.083405,60005.0,60004.0,0.06524582]
[1728591284173,0.083405,60005.0,60003.0,0.06524582]
[1728591284460,0.083403,60007.0,60002.0,0.001]
[1728591284668,0.083403,60007.0,60006.0,0.06533523]
[1728591285095,0.083403,60007.0,60001.0,0.44262023]
[1728591285251,0.083403,60007.0,60006.0,0.06533098]
[1728591285455,0.083405,60006.0,60001.0,0.08182023]
[1728591286165,0.083405,60006.0,60003.0,0.001]
[1728591287061,0.083405,60005.0,60002.0,0.08182023]
[1728591287256,0.0349,60007.0,60001.0,0.08382023]
[1728591287454,0.0349,60007.0,60003.0,0.08182023]
[1728591287664,0.0349,60007.0,60004.0,0.04909284]
[1728591287665,0.083403,60007.0,60004.0,0.04909284]
[1728591287866,0.39126136,60008.0,60004.0,0.04909284]
[1728591288073,0.083403,60007.0,60004.0,0.04909284]
[1728591288456,0.083403,60007.0,60006.0,0.04909284]
[1728591289055,0.47614336,60008.0,60006.0,0.04909284]
[1728591289261,0.04167043,60006.0,60004.0,0.001]
[1728591289457,0.083405,60005.0,60004.0,0.06645712]
[1728591289756,0.03046136,60008.0,60004.0,0.06645712]
[1728591289996,0.117796,60012.0,60005.0,0.25553215]
[1728591290266,0.117796,60012.0,60007.0,0.04914879]
[1728591290358,0.117796,60012.0,60009.0,0.04914879]
[1728591290559,0.083396,60012.0,60008.0,0.06553215]
[1728591291165,0.083396,60012.0,60007.0,0.06553215]
[1728591291367,0.083396,60012.0,60009.0,0.06553215]
[1728591291562,0.39010368,60011.0,60009.0,0.06553215]
[1728591292475,0.39010368,60011.0,60009.0,0.06653215]
[1728591292767,0.39010368,60011.0,60009.0,0.001]
[1728591293578,0.39010368,60011.0,60009.0,0.002]
[1728591295077,0.39010368,60011.0,60010.0,0.06564589]
[1728591295268,0.47350068,60011.0,60010.0,0.06564589]
[1728591295671,0.47350068,60011.0,60010.0,0.04277972]
[1728591295672,1.16342068,60011.0,60010.0,0.04277972]
[1728591295971,0.66350068,60011.0,60010.0,0.04277972]
[1728591296270,0.66350068,60011.0,60009.0,0.002]
[1728591296271,0.083398,60010.0,60009.0,0.001]